Workbook

Sheet INÍCIO1
F7: Informações de uso da planilha:
F8: 1) ATENÇÃO: NÃO USE ESSA PLANILHA no Google Chrome e nem no Celular.... Faça o download para seu computador e use-a no EXCEL!
F9: 2) A planinha é totalmente automatizada. Preencher somente nas partes não bloqueadas.
F13: ONDE ENCONTRAR O FOCO CAVEIRA - clique no link abaixo
F14: SITE: www.fococaveira.com.br
F15: TELEGRAM DE DICAS
F16: FACEBOOK
F17: INSTAGRAM: @fococaveira_
F18: YOUTUBE: Foco Caveira
F19: Contato Whatsapp: 67.99287-6697

Sheet h livre
A4: CONTROLE DE HORAS LIVRES NA SEMANA
B5: Segunda | C5: Terça | D5: Quarta | E5: Quinta | F5: Sexta | G5: Sábado | H5: Domingo
A6: 5:00 a 6:00 | B6: ESTUDO
A7: 6:00 a 7:00 | B7: ESTUDO
A8: 7:00 a 8:00 | C8: ESTUDO | D8: ESTUDO | E8: ESTUDO
A9: 8:00 a 9:00 | B9: ESTUDO | C9: ESTUDO | K9: =SUM(B25:H25) -> 1.291666667
A10: 9:00 a 10:00 | B10: ESTUDO | C10: ESTUDO
A11: 10:00 a 11:00 | B11: ESTUDO | K11: Total de estudos na semana
A12: 11:00 a 12:00 | B12: ESTUDO
A13: 12:00 a 13:00 | B13: almoço
A14: 13:00 a 14:00 | B14: trabalho
A15: 14:00 a 15:00 | B15: trabalho
A16: 15:00 a 16:00 | B16: trabalho
A17: 16:00 a 17:00 | B17: trabalho
A18: 17:00 a 18:00 | B18: trabalho
A19: 18:00 a 19:00 | B19: ESTUDO
A20: 19:00 a 20:00 | B20: ESTUDO
A21: 20:00 a 21:00 | B21: ESTUDO
A22: 21:00 a 22:00 | B22: ESTUDO
A23: 22:00 a 23:00
A24: 23:00 a 0:00
A25: Total de horas de estudo | B25: 05:00:00 | C25: 03:00:00 | D25: 05:00:00 | E25: 03:00:00 | F25: 03:00:00 | G25: 06:00:00 | H25: 06:00:00

Sheet Concurso
Y2: PC-SP/23 - INVESTIGADOR - pós-edital
E4: Qde de Questões na Prova | F4: Peso Questão | G4: Valor da Questão | H4: Total na Prova | I4: % da prova | J4: MÍNIMO prova
C5: 1 | D5: INFORMÁTICA | E5: 10 | F5: 1 | G5: 1.25 | H5: =E5*G5 -> 12.5 | I5: =H5/$H$10 -> 0.125 | J5: 0.5 | U5: ='Ciclo de Estudos'!$Q$6 -> 82
C6: 2 | D6: RAC. LÓGICO | E6: 6 | F6: 1 | G6: 1.25 | H6: 7.5 | I6: =H6/$H$10 -> 0.075
C7: 3 | D7: PORTUGUÊS | E7: 20 | F7: 1 | G7: 1.25 | H7: 25 | I7: =H7/$H$10 -> 0.25 | J7: 0.5
C8: 4 | D8: DIREITO | E8: 30 | F8: 1 | G8: 1.25 | H8: 37.5 | I8: =H8/$H$10 -> 0.375 | J8: 0.5 | U8: ='Ciclo de Estudos'!$I$6 -> 2023-11-26
C9: 5 | D9: CRIMINOLOGIA | E9: 14 | F9: 1 | G9: 1.25 | H9: 17.5 | I9: =H9/$H$10 -> 0.175
D10: TOTAL | E10: =SUM(E5:E9) -> 80 | F10: - | H10: =SUM(H2:H9) -> 100 | I10: =SUM(I5:I9) -> 1 | J10: 0.5
H11: Discursiva | I11: 100 pontos | J11: 0.5

Sheet DISCIPLINAS
C4: EDITAL VERTICALIZADO | D4: Estudei: Digite (S) | R4: digitar erro - banca cespe | T4: NÃO INCLUIR DADOS | AD4: NÃO INCLUIR DADOS | AG4: digitar erro - banca cespe | AI4: NÃO INCLUIR DADOS
B5: Prioridade 5 maior | C5: =Concurso!Y2 -> PC-SP/23 - INVESTIGADOR - pós-edital | D5: PDF | E5: VÍDEO | F5: RESUMO | G5: EVER NOTE | H5: ONDE PAREI | J5: Revisões - (S) SIM | Q5: Q | R5: Certo | S5: Erro | T5: TL | U5: % | V5: Q | W5: Certo | X5: Erro | Y5: TL | Z5: % | AA5: Q | AB5: Certo | AC5: Erro | AD5: TL | AE5: % | AF5: Q | AG5: Certo | AH5: Erro | AI5: TL | AJ5: %
J6: 1º | K6: 2º | L6: 3º | M6: 4º | N6: 5º | O6: 6º
C7: =Concurso!D5 -> INFORMÁTICA | T7: =R7-S7 -> 0 | U7: =IF(Q7,T7/Q7,0) -> 0 | Y7: =W7-X7 -> 0 | Z7: =IF(V7,Y7/V7,0) -> 0 | AD7: =AB7-AC7 -> 0 | AE7: =IF(AA7,AD7/AA7,0) -> 0 | AI7: =AG7-AH7 -> 0 | AJ7: =IF(AF7,AI7/AF7,0) -> 0
B8: 5 | C8: 5.1 Sistema operacional: conceito de pastas, diretórios, arquivos e atalhos, área de trabalho, área de transferência, manipulação de arquivos e pastas, uso dos menus, programas e aplicativos, digitalização de arquivos, interação com o conjunto de aplicativos para escritório, sistemas operacionais de dispositivos móveis ou portáteis. | T8: =R8-S8 -> 0 | U8: =IF(Q8,T8/Q8,0) -> 0 | Y8: =W8-X8 -> 0 | Z8: =IF(V8,Y8/V8,0) -> 0 | AD8: =AB8-AC8 -> 0 | AE8: =IF(AA8,AD8/AA8,0) -> 0 | AI8: =AG8-AH8 -> 0 | AJ8: =IF(AF8,AI8/AF8,0) -> 0
B9: 5 | C9: 5.2 Editor de texto: estrutura básica dos documentos, edição e formatação de textos, cabeçalhos, parágrafos, fontes, colunas, marcadores simbólicos e numéricos, tabelas, impressão, controle de quebras e numeração de páginas, legendas, índices, inserção de objetos, campos predefinidos, caixas de texto. | T9: 0 | U9: 0 | Y9: 0 | Z9: 0 | AD9: 0 | AE9: 0 | AI9: 0 | AJ9: 0
B10: 5 | C10: 5.3 Editor de planilha eletrônica: estrutura básica das planilhas, conceitos de células, linhas, colunas, pastas e gráficos, elaboração de tabelas e gráficos, uso de fórmulas, funções e macros, impressão, inserção de objetos, campos predefinidos, controle de quebras e numeração de páginas, obtenção de dados externos, aplicação de filtros, classificação de dados. | T10: 0 | U10: 0 | Y10: 0 | Z10: 0 | AD10: 0 | AE10: 0 | AI10: 0 | AJ10: 0
B11: 5 | C11: 5.4 Mensageria eletrônica: conceito e utilização; correio eletrônico, uso de correio eletrônico, preparo e envio de mensagens, criação de regras para mensagens, anexação de arquivos, aplicativos de comunicação por mensagens em dispositivos móveis ou portáteis. | T11: 0 | U11: 0 | Y11: 0 | Z11: 0 | AD11: 0 | AE11: 0 | AI11: 0 | AJ11: 0
B12: 3 | C12: 5.5 Voz sobre IP (VOIP): conceito e utilização; softwares e aplicativos de comunicação por voz, áudio ou vídeo (videochamadas e videoconferências). | T12: 0 | U12: 0 | Y12: 0 | Z12: 0 | AD12: 0 | AE12: 0 | AI12: 0 | AJ12: 0
B13: 5 | C13: 5.6 Redes: conceitos, navegadores para computadores e dispositivos móveis ou portáteis, conceito de internet e intranet, conceitos de URL, links, sítios eletrônicos (sites), busca e impressão de páginas, redes sociais, sistemas de busca e pesquisa, proteção e segurança, configurações, armazenamento de dados na nuvem (cloud storage), deep web e dark web. | T13: 0 | U13: 0 | Y13: 0 | Z13: 0 | AD13: 0 | AE13: 0 | AI13: 0 | AJ13: 0
B14: 3 | C14: 5.7 Hardware: Microcomputadores e periféricos: configuração básica e componentes; Impressoras: classificação e noções gerais; dispositivos de armazenamento externo: conceito, classificação e noções gerais; dispositivos móveis ou portáteis: smartphones e tablets. | T14: 0 | U14: 0 | Y14: 0 | Z14: 0 | AD14: 0 | AE14: 0 | AI14: 0 | AJ14: 0
B15: 5 | C15: 5.8 Softwares maliciosos: malware, ransomware, vírus, phishing; spam; engenharia social; segurança da informação: mecanismos de segurança de redes, computadores, dispositivos móveis ou portáteis, autenticações em duas etapas, proteção de dados pessoais. | T15: 0 | U15: 0 | Y15: 0 | Z15: 0 | AD15: 0 | AE15: 0 | AI15: 0 | AJ15: 0
B16: 5 | C16: 5.9 Ambiente em rede: conceitos, navegadores, navegação internet e intranet, conceitos de URL, links, endereços eletrônicos (sites), busca e impressão de páginas, redes sociais, sistemas de busca e pesquisa, proteção e segurança, configurações, armazenamento de dados na nuvem (cloud storage). | T16: 0 | U16: 0 | Y16: 0 | Z16: 0 | AD16: 0 | AE16: 0 | AI16: 0 | AJ16: 0
B17: 5 | C17: 5.10 Crimes virtuais e cibersegurança: Deepweb e Darkweb. Provas digitais. Criptomoedas | T17: 0 | U17: 0 | Y17: 0 | Z17: 0 | AD17: 0 | AE17: 0 | AI17: 0 | AJ17: 0
C18: =[2]Concurso!D6 -> RAC. LÓGICO | T18: 0 | U18: 0 | Y18: 0 | Z18: 0 | AD18: 0 | AE18: 0 | AI18: 0 | AJ18: 0
B19: 5 | C19: 4.1 Estrutura lógica das relações arbitrárias entre pessoas, lugares, coisas, eventos fictícios; dedução de novas informações das relações fornecidas e avaliação das condições usadas para estabelecer a estrutura dessas relações. | T19: 0 | U19: 0 | Y19: 0 | Z19: 0 | AD19: 0 | AE19: 0 | AI19: 0 | AJ19: 0
B20: 5 | C20: 4.2 Identificação das regularidades de uma sequência, numérica ou figural, de modo a indicar qual é o elemento de uma dada posição. | T20: 0 | U20: 0 | Y20: 0 | Z20: 0 | AD20: 0 | AE20: 0 | AI20: 0 | AJ20: 0
B21: 5 | C21: 4.3 Estruturas lógicas e lógica de argumentação | T21: 0 | U21: 0 | Y21: 0 | Z21: 0 | AD21: 0 | AE21: 0 | AI21: 0 | AJ21: 0
C22: =[2]Concurso!D7 -> PORTUGUÊS | T22: 0 | U22: 0 | Y22: 0 | Z22: 0 | AD22: 0 | AE22: 0 | AI22: 0 | AJ22: 0
B23: 5 | C23: 1.1 Leitura e interpretação de diversos tipos de textos (literários, não literários, inclusive técnico e mistos). | T23: 0 | U23: 0 | Y23: 0 | Z23: 0 | AD23: 0 | AE23: 0 | AI23: 0 | AJ23: 0
B24: 3 | C24: 1.2 Ortografia. | T24: 0 | U24: 0 | Y24: 0 | Z24: 0 | AD24: 0 | AE24: 0 | AI24: 0 | AJ24: 0
B25: 5 | C25: 1.3 Acentuação. | T25: 0 | U25: 0 | Y25: 0 | Z25: 0 | AD25: 0 | AE25: 0 | AI25: 0 | AJ25: 0
B26: 5 | C26: 1.4 Sinônimos e antônimos. | T26: 0 | U26: 0 | Y26: 0 | Z26: 0 | AD26: 0 | AE26: 0 | AI26: 0 | AJ26: 0
B27: 5 | C27: 1.5 Sentido próprio e figurado das palavras. | T27: 0 | U27: 0 | Y27: 0 | Z27: 0 | AD27: 0 | AE27: 0 | AI27: 0 | AJ27: 0
B28: 5 | C28: 1.6 Pontuação. | T28: 0 | U28: 0 | Y28: 0 | Z28: 0 | AD28: 0 | AE28: 0 | AI28: 0 | AJ28: 0
B29: 5 | C29: 1.7 Classes de palavras: substantivo, adjetivo, numeral, artigo, pronome, verbo, advérbio, preposição e conjunção e interjeição, emprego e sentido que imprimem às relações que estabelecem. | T29: 0 | U29: 0 | Y29: 0 | Z29: 0 | AD29: 0 | AE29: 0 | AI29: 0 | AJ29: 0
B30: 3 | C30: 1.8 Emprego de tempos e modos verbais. | T30: 0 | U30: 0 | Y30: 0 | Z30: 0 | AD30: 0 | AE30: 0 | AI30: 0 | AJ30: 0
B31: 5 | C31: 1.9 Frases e tipos de frases. | T31: 0 | U31: 0 | Y31: 0 | Z31: 0 | AD31: 0 | AE31: 0 | AI31: 0 | AJ31: 0
B32: 5 | C32: 1.10 Oração: termos essenciais da oração, termos integrantes da oração, termos acessórios da oração, coordenação e subordinação. | T32: 0 | U32: 0 | Y32: 0 | Z32: 0 | AD32: 0 | AE32: 0 | AI32: 0 | AJ32: 0
B33: 5 | C33: 1.11 Concordância verbal e nominal. | T33: 0 | U33: 0 | Y33: 0 | Z33: 0 | AD33: 0 | AE33: 0 | AI33: 0 | AJ33: 0
B34: 5 | C34: 1.12 Regência verbal e nominal. | T34: 0 | U34: 0 | Y34: 0 | Z34: 0 | AD34: 0 | AE34: 0 | AI34: 0 | AJ34: 0
B35: 5 | C35: 1.13 Colocação pronominal. | T35: 0 | U35: 0 | Y35: 0 | Z35: 0 | AD35: 0 | AE35: 0 | AI35: 0 | AJ35: 0
B36: 5 | C36: 1.14 Semântica. | T36: 0 | U36: 0 | Y36: 0 | Z36: 0 | AD36: 0 | AE36: 0 | AI36: 0 | AJ36: 0
B37: 5 | C37: 1.15 Crase. | T37: 0 | U37: 0 | Y37: 0 | Z37: 0 | AD37: 0 | AE37: 0 | AI37: 0 | AJ37: 0
B38: 5 | C38: 1.16 Análise morfossintática. | T38: 0 | U38: 0 | Y38: 0 | Z38: 0 | AD38: 0 | AE38: 0 | AI38: 0 | AJ38: 0
B39: 5 | C39: 1.17 Vícios de linguagem. | T39: 0 | U39: 0 | Y39: 0 | Z39: 0 | AD39: 0 | AE39: 0 | AI39: 0 | AJ39: 0
C40: DIREITO | T40: 0 | U40: 0 | Y40: 0 | Z40: 0 | AD40: 0 | AE40: 0 | AI40: 0 | AJ40: 0
C41: DIREITO CONSTITUCIONAL | T41: 0 | U41: 0 | Y41: 0 | Z41: 0 | AD41: 0 | AE41: 0 | AI41: 0 | AJ41: 0
B42: 5 | C42: 2.1 Constituição da República Federativa do Brasil: artigos 1.º a 14, 37, 39, 41 e 144. | T42: 0 | U42: 0 | Y42: 0 | Z42: 0 | AD42: 0 | AE42: 0 | AI42: 0 | AJ42: 0
B43: 5 | C43: 2.2 Constituição do Estado de São Paulo: artigos 111, 139, 140 e 141. | T43: 0 | U43: 0 | Y43: 0 | Z43: 0 | AD43: 0 | AE43: 0 | AI43: 0 | AJ43: 0
C44: DIREITOS HUMANOS | T44: 0 | U44: 0 | Y44: 0 | Z44: 0 | AD44: 0 | AE44: 0 | AI44: 0 | AJ44: 0
B45: 3 | C45: 2.3.1 Conceito e evolução histórica. | T45: 0 | U45: 0 | Y45: 0 | Z45: 0 | AD45: 0 | AE45: 0 | AI45: 0 | AJ45: 0
B46: 3 | C46: 2.3.2 Estado Democrático de Direito. | T46: 0 | U46: 0 | Y46: 0 | Z46: 0 | AD46: 0 | AE46: 0 | AI46: 0 | AJ46: 0
B47: 3 | C47: 2.3.3 Direitos Humanos e Cidadania. | T47: 0 | U47: 0 | Y47: 0 | Z47: 0 | AD47: 0 | AE47: 0 | AI47: 0 | AJ47: 0
B48: 5 | C48: 2.3.4 Declaração Universal dos Direitos Humanos. | T48: 0 | U48: 0 | Y48: 0 | Z48: 0 | AD48: 0 | AE48: 0 | AI48: 0 | AJ48: 0
B49: 5 | C49: 2.3.5 Pacto Internacional dos Direitos Civis e Políticos. | T49: 0 | U49: 0 | Y49: 0 | Z49: 0 | AD49: 0 | AE49: 0 | AI49: 0 | AJ49: 0
B50: 5 | C50: 2.3.6 Pacto Internacional dos Direitos Econômicos, Sociais e Culturais. | T50: 0 | U50: 0 | Y50: 0 | Z50: 0 | AD50: 0 | AE50: 0 | AI50: 0 | AJ50: 0
B51: 5 | C51: 2.3.7 Convenção Americana de Direitos Humanos (Pacto de San José da Costa Rica). | T51: 0 | U51: 0 | Y51: 0 | Z51: 0 | AD51: 0 | AE51: 0 | AI51: 0 | AJ51: 0
B52: 5 | C52: 2.3.8 Convenção Contra a Tortura e outros Tratamentos ou Penas Cruéis, Desumanos ou Degradantes. | T52: 0 | U52: 0 | Y52: 0 | Z52: 0 | AD52: 0 | AE52: 0 | AI52: 0 | AJ52: 0
B53: 3 | C53: 2.3.9 Estatuto de Roma. | T53: 0 | U53: 0 | Y53: 0 | Z53: 0 | AD53: 0 | AE53: 0 | AI53: 0 | AJ53: 0
B54: 3 | C54: 2.3.10 Grupos vulneráveis e minorias. Diversidade étnico-racial: história, preconceito, discriminação, racismo, igualdade, ações afirmativas. | T54: 0 | U54: 0 | Y54: 0 | Z54: 0 | AD54: 0 | AE54: 0 | AI54: 0 | AJ54: 0
C55: DIREITO PENAL | T55: 0 | U55: 0 | Y55: 0 | Z55: 0 | AD55: 0 | AE55: 0 | AI55: 0 | AJ55: 0
B56: 5 | C56: 2.4.1 Da aplicação da lei penal: artigos 1º a 12. | T56: 0 | U56: 0 | Y56: 0 | Z56: 0 | AD56: 0 | AE56: 0 | AI56: 0 | AJ56: 0
B57: 5 | C57: 2.4.2 Do crime: artigos 13 a 25. | T57: 0 | U57: 0 | Y57: 0 | Z57: 0 | AD57: 0 | AE57: 0 | AI57: 0 | AJ57: 0
B58: 5 | C58: 2.4.3 Concurso de Pessoas: artigos 29 a 31. | T58: 0 | U58: 0 | Y58: 0 | Z58: 0 | AD58: 0 | AE58: 0 | AI58: 0 | AJ58: 0
B59: 5 | C59: 2.4.4 Concurso de Crimes: artigos 69 a 71. | T59: 0 | U59: 0 | Y59: 0 | Z59: 0 | AD59: 0 | AE59: 0 | AI59: 0 | AJ59: 0
B60: 5 | C60: 2.4.5 Dos Crimes contra a Vida: artigos 121 a 128. | T60: 0 | U60: 0 | Y60: 0 | Z60: 0 | AD60: 0 | AE60: 0 | AI60: 0 | AJ60: 0
B61: 5 | C61: 2.4.6 Das Lesões Corporais: artigo 129. | T61: 0 | U61: 0 | Y61: 0 | Z61: 0 | AD61: 0 | AE61: 0 | AI61: 0 | AJ61: 0
B62: 3 | C62: 2.4.7 Dos Crimes contra a Honra: artigos 138 a 145. | T62: 0 | U62: 0 | Y62: 0 | Z62: 0 | AD62: 0 | AE62: 0 | AI62: 0 | AJ62: 0
B63: 3 | C63: 2.4.8 Dos Crimes contra a Liberdade Individual: artigos 146 a 149-A. | T63: 0 | U63: 0 | Y63: 0 | Z63: 0 | AD63: 0 | AE63: 0 | AI63: 0 | AJ63: 0
B64: 3 | C64: 2.4.9 Dos Crimes contra a Inviolabilidade do Domicílio: artigo 150. | T64: 0 | U64: 0 | Y64: 0 | Z64: 0 | AD64: 0 | AE64: 0 | AI64: 0 | AJ64: 0
B65: 3 | C65: 2.4.10 Dos Crimes contra a Inviolabilidade de Segredos: artigos 153 a 154-B. | T65: 0 | U65: 0 | Y65: 0 | Z65: 0 | AD65: 0 | AE65: 0 | AI65: 0 | AJ65: 0
B66: 5 | C66: 2.4.11 Dos Crimes contra o Patrimônio: artigos 155 a 183. | T66: 0 | U66: 0 | Y66: 0 | Z66: 0 | AD66: 0 | AE66: 0 | AI66: 0 | AJ66: 0
B67: 3 | C67: 2.4.12 Dos Crimes contra a Dignidade Sexual: artigos 213 a 234-B. | T67: 0 | U67: 0 | Y67: 0 | Z67: 0 | AD67: 0 | AE67: 0 | AI67: 0 | AJ67: 0
B68: 3 | C68: 2.4.13 Dos Crimes contra a Fé Pública: artigos 289 a 311-A. | T68: 0 | U68: 0 | Y68: 0 | Z68: 0 | AD68: 0 | AE68: 0 | AI68: 0 | AJ68: 0
B69: 3 | C69: 2.4.14 Dos Crimes contra a Paz Pública: artigos 286 a 288-A. | T69: 0 | U69: 0 | Y69: 0 | Z69: 0 | AD69: 0 | AE69: 0 | AI69: 0 | AJ69: 0
B70: 5 | C70: 2.4.15 Dos Crimes Praticados por F. Público contra a Adm. em Geral: artigos 312 a 327. | T70: 0 | U70: 0 | Y70: 0 | Z70: 0 | AD70: 0 | AE70: 0 | AI70: 0 | AJ70: 0
B71: 5 | C71: 2.4.16 Dos Crimes Praticados por Particular contra a Adm. Geral: artigos 328 a 334-A. | T71: 0 | U71: 0 | Y71: 0 | Z71: 0 | AD71: 0 | AE71: 0 | AI71: 0 | AJ71: 0
B72: 5 | C72: 2.4.17 Dos Crimes contra a Administração da Justiça: artigos 338 a 359. | T72: =R72-S72 -> 0 | U72: =IF(Q72,T72/Q72,0) -> 0 | Y72: =W72-X72 -> 0 | Z72: =IF(V72,Y72/V72,0) -> 0 | AD72: =AB72-AC72 -> 0 | AE72: =IF(AA72,AD72/AA72,0) -> 0 | AI72: =AG72-AH72 -> 0 | AJ72: =IF(AF72,AI72/AF72,0) -> 0
C73: DIREITO PROCESSUAL PENAL | T73: 0 | U73: 0 | Y73: 0 | Z73: 0 | AD73: 0 | AE73: 0 | AI73: 0 | AJ73: 0
B74: 5 | C74: 2.5.1 Do Inquérito Policial: artigos 4º a 23. | T74: 0 | U74: 0 | Y74: 0 | Z74: 0 | AD74: 0 | AE74: 0 | AI74: 0 | AJ74: 0
B75: 5 | C75: 2.5.2 Da Ação Penal: artigos 24 a 62. | T75: 0 | U75: 0 | Y75: 0 | Z75: 0 | AD75: 0 | AE75: 0 | AI75: 0 | AJ75: 0
B76: 3 | C76: 2.5.3 Da Restituição de Coisas Apreendidas: artigos 118 a 124-A. | T76: 0 | U76: 0 | Y76: 0 | Z76: 0 | AD76: 0 | AE76: 0 | AI76: 0 | AJ76: 0
B77: 5 | C77: 2.5.4 Das Provas: artigos 155 a 250. | T77: 0 | U77: 0 | Y77: 0 | Z77: 0 | AD77: 0 | AE77: 0 | AI77: 0 | AJ77: 0
B78: 5 | C78: 2.5.5 Da Prisão, das Medidas Cautelares e da Liberdade Provisória: artigos 282 a 350. | T78: 0 | U78: 0 | Y78: 0 | Z78: 0 | AD78: 0 | AE78: 0 | AI78: 0 | AJ78: 0
C79: LEGISLAÇÃO ESPECIAL | T79: 0 | U79: 0 | Y79: 0 | Z79: 0 | AD79: 0 | AE79: 0 | AI79: 0 | AJ79: 0
B80: 3 | C80: 2.6.1 Decreto-Lei nº 3.688/1941 (Lei das Contravenções Penais). | T80: 0 | U80: 0 | Y80: 0 | Z80: 0 | AD80: 0 | AE80: 0 | AI80: 0 | AJ80: 0
B81: 5 | C81: 2.6.2 Lei nº 7.716/1989 (Crimes de Preconceito Racial). | T81: 0 | U81: 0 | Y81: 0 | Z81: 0 | AD81: 0 | AE81: 0 | AI81: 0 | AJ81: 0
B82: 5 | C82: 2.6.3 Lei nº 8.069/1990 (ECA): artigos 2º, 171 a 178, 225 a 244-B. | T82: 0 | U82: 0 | Y82: 0 | Z82: 0 | AD82: 0 | AE82: 0 | AI82: 0 | AJ82: 0
B83: 5 | C83: 2.6.4 Lei nº 8.072/1990 (Crimes Hediondos). | T83: 0 | U83: 0 | Y83: 0 | Z83: 0 | AD83: 0 | AE83: 0 | AI83: 0 | AJ83: 0
B84: 5 | C84: 2.6.5 Lei nº 8.429/1992 (Lei de Improbidade Administrativa). | T84: 0 | U84: 0 | Y84: 0 | Z84: 0 | AD84: 0 | AE84: 0 | AI84: 0 | AJ84: 0
B85: 3 | C85: 2.6.6 Lei nº 9.099/95, com as alterações feitas pela Lei n.º 11.313/06 (Lei dos Juizados Especiais Criminais): artigos 60 a 76, 88 a 92. | T85: 0 | U85: 0 | Y85: 0 | Z85: 0 | AD85: 0 | AE85: 0 | AI85: 0 | AJ85: 0
B86: 5 | C86: 2.6.7 Lei nº 9.296/1996 (Lei de Interceptação Telefônica). | T86: 0 | U86: 0 | Y86: 0 | Z86: 0 | AD86: 0 | AE86: 0 | AI86: 0 | AJ86: 0
B87: 5 | C87: 2.6.8 Lei nº 9.455/1997 (Tortura). | T87: 0 | U87: 0 | Y87: 0 | Z87: 0 | AD87: 0 | AE87: 0 | AI87: 0 | AJ87: 0
B88: 5 | C88: 2.6.9 Dos crimes previstos na Lei nº 9.503/1997 (CTB): artigos 291 a 312-B | T88: 0 | U88: 0 | Y88: 0 | Z88: 0 | AD88: 0 | AE88: 0 | AI88: 0 | AJ88: 0
B89: 5 | C89: 2.6.10 Dos crimes previstos na Lei nº 9.503/1997 (CTB): artigos 291 a 312-B; | T89: 0 | U89: 0 | Y89: 0 | Z89: 0 | AD89: 0 | AE89: 0 | AI89: 0 | AJ89: 0
B90: 3 | C90: 2.6.11 Lei nº 9.605/1998 (Lei do Meio Ambiente): artigos 32, 42 e 65. 2.6.12 Lei nº 10.741/2003 (Estatuto da Pessoa Idosa): artigos 93 a 109. | T90: 0 | U90: 0 | Y90: 0 | Z90: 0 | AD90: 0 | AE90: 0 | AI90: 0 | AJ90: 0
B91: 5 | C91: 2.6.13 Lei nº 10.826/2003 (Estatuto do Desarmamento): artigos 12 a 21. | T91: 0 | U91: 0 | Y91: 0 | Z91: 0 | AD91: 0 | AE91: 0 | AI91: 0 | AJ91: 0
B92: 5 | C92: 2.6.14 Lei nº 11.340/2006 (Lei "Maria da Penha"): artigos 1.º a 22, 24 e 41. | T92: 0 | U92: 0 | Y92: 0 | Z92: 0 | AD92: 0 | AE92: 0 | AI92: 0 | AJ92: 0
B93: 5 | C93: 2.6.15 Lei nº 11.343/2006 (Lei Antidrogas). | T93: 0 | U93: 0 | Y93: 0 | Z93: 0 | AD93: 0 | AE93: 0 | AI93: 0 | AJ93: 0
B94: 5 | C94: 2.6.16 Lei nº 12.850/2013 (Repressão às Organizações Criminosas). | T94: 0 | U94: 0 | Y94: 0 | Z94: 0 | AD94: 0 | AE94: 0 | AI94: 0 | AJ94: 0
B95: 3 | C95: 2.6.17 Lei nº 13.146/2015 (Estatuto da Pessoa com Deficiência): artigos 88 a 91. | T95: 0 | U95: 0 | Y95: 0 | Z95: 0 | AD95: 0 | AE95: 0 | AI95: 0 | AJ95: 0
B96: 3 | C96: 2.6.18 Lei nº 13.344/2016 (Prevenção e Repressão ao Tráfico de Pessoas). | T96: 0 | U96: 0 | Y96: 0 | Z96: 0 | AD96: 0 | AE96: 0 | AI96: 0 | AJ96: 0
B97: 3 | C97: 2.6.19 Lei nº 13.709/2018 (Lei Geral de Proteção de Dados). | T97: 0 | U97: 0 | Y97: 0 | Z97: 0 | AD97: 0 | AE97: 0 | AI97: 0 | AJ97: 0
B98: 5 | C98: 2.6.20 Lei nº 13.869/2019 (Lei de Abuso de Autoridade). | T98: 0 | U98: 0 | Y98: 0 | Z98: 0 | AD98: 0 | AE98: 0 | AI98: 0 | AJ98: 0
B99: 5 | C99: 2.6.21 Lei nº 14.155/2021 (Lei de Proteção de Dados - Penal). | T99: 0 | U99: 0 | Y99: 0 | Z99: 0 | AD99: 0 | AE99: 0 | AI99: 0 | AJ99: 0
B100: 3 | C100: 2.6.22 Lei Orgânica da Polícia do Estado de São Paulo (Lei Complementar nº 207/1979, Lei Complementar nº 922/02 e Lei Complementar nº 1.151/11). | T100: 0 | U100: 0 | Y100: 0 | Z100: 0 | AD100: 0 | AE100: 0 | AI100: 0 | AJ100: 0
B101: 5 | C101: 2.6.23 Lei Estadual nº 10.261/1968 (Estatuto dos Funcionários Públicos Civis do Estado de São Paulo). | T101: 0 | U101: 0 | Y101: 0 | Z101: 0 | AD101: 0 | AE101: 0 | AI101: 0 | AJ101: 0
B102: 5 | C102: 2.5.24 Lei 14.344/2022 (Lei Henry Borel). | T102: 0 | U102: 0 | Y102: 0 | Z102: 0 | AD102: 0 | AE102: 0 | AI102: 0 | AJ102: 0
B103: 5 | C103: 2.5.25 Lei nº 14.540/2023 (Institui o Programa de Prevenção ao Assédio Sexual e demais Crimes contra a Dignidade Sexual e à Violência Sexual no âmbito da Administração Pública Direta e Indireta Federal, Estadual, Distrital e Municipal). | T103: 0 | U103: 0 | Y103: 0 | Z103: 0 | AD103: 0 | AE103: 0 | AI103: 0 | AJ103: 0
B104: 5 | C104: 2.5.26 Lei nº 14.541/2023 (Dispõe sobre a Criação e o Funcionamento Ininterrupto de Delegacias Especializadas de Atendimento à Mulher). | T104: 0 | U104: 0 | Y104: 0 | Z104: 0 | AD104: 0 | AE104: 0 | AI104: 0 | AJ104: 0
C105: DIREITO ADMINISTRATIVO | T105: 0 | U105: 0 | Y105: 0 | Z105: 0 | AD105: 0 | AE105: 0 | AI105: 0 | AJ105: 0
B106: 3 | C106: 2.7.1 Dos princípios da Administração Pública. | T106: 0 | U106: 0 | Y106: 0 | Z106: 0 | AD106: 0 | AE106: 0 | AI106: 0 | AJ106: 0
B107: 5 | C107: 2.7.2 Da Administração Pública Direta e Indireta. | T107: 0 | U107: 0 | Y107: 0 | Z107: 0 | AD107: 0 | AE107: 0 | AI107: 0 | AJ107: 0
B108: 5 | C108: 2.7.3 Dos poderes administrativos. | T108: 0 | U108: 0 | Y108: 0 | Z108: 0 | AD108: 0 | AE108: 0 | AI108: 0 | AJ108: 0
B109: 5 | C109: 2.7.4 Atos administrativos. | T109: 0 | U109: 0 | Y109: 0 | Z109: 0 | AD109: 0 | AE109: 0 | AI109: 0 | AJ109: 0
B110: 3 | C110: 2.7.5 Serviços Públicos: conceito, princípios e classificação. | T110: 0 | U110: 0 | Y110: 0 | Z110: 0 | AD110: 0 | AE110: 0 | AI110: 0 | AJ110: 0
B111: 5 | C111: 2.7.6 Responsabilidade Civil do Estado. | T111: 0 | U111: 0 | Y111: 0 | Z111: 0 | AD111: 0 | AE111: 0 | AI111: 0 | AJ111: 0
B112: 5 | C112: 2.7.7 Controle da Administração. | T112: 0 | U112: 0 | Y112: 0 | Z112: 0 | AD112: 0 | AE112: 0 | AI112: 0 | AJ112: 0
C113: CRIMINOLOGIA | T113: 0 | U113: 0 | Y113: 0 | Z113: 0 | AD113: 0 | AE113: 0 | AI113: 0 | AJ113: 0
B114: 5 | C114: 3.1 Conceito, método, objeto e finalidade da Criminologia. | T114: 0 | U114: 0 | Y114: 0 | Z114: 0 | AD114: 0 | AE114: 0 | AI114: 0 | AJ114: 0
B115: 5 | C115: 3.2 Criminologia do Consenso e do Conflito. | T115: 0 | U115: 0 | Y115: 0 | Z115: 0 | AD115: 0 | AE115: 0 | AI115: 0 | AJ115: 0
B116: 5 | C116: 3.3 Vitimologia, Vitimização e Vitimodogmática. | T116: 0 | U116: 0 | Y116: 0 | Z116: 0 | AD116: 0 | AE116: 0 | AI116: 0 | AJ116: 0
B117: 5 | C117: 3.4 Criminalidade de Massa, Moderna e Organizada. | T117: 0 | U117: 0 | Y117: 0 | Z117: 0 | AD117: 0 | AE117: 0 | AI117: 0 | AJ117: 0
B118: 5 | C118: 3.5 Nova Criminologia. 3.5.1 Criminologia Feminista. 3.5.2 Criminologia Cultural. 3.5.3 Criminologia Queer. 3.5.4 Criminologia Ambiental. 3.5.5 Criminologia Racial. 3.5.6 Criminologia Clínica. | T118: 0 | U118: 0 | Y118: 0 | Z118: 0 | AD118: 0 | AE118: 0 | AI118: 0 | AJ118: 0
B119: 5 | C119: 3.6 Modelos de Prevenção e Reação ao Fenômeno Criminal | T119: 0 | U119: 0 | Y119: 0 | Z119: 0 | AD119: 0 | AE119: 0 | AI119: 0 | AJ119: 0
A120: =SUM(A7:A119) -> 0 | Q120: =SUM(Q7:Q119) -> 0 | R120: =SUM(R7:R119) -> 0 | S120: =SUM(S7:S119) -> 0 | T120: =R120-S120 -> 0 | U120: =IF(Q120,T120/Q120,0) -> 0 | V120: =SUM(V7:V119) -> 0 | W120: =SUM(W7:W119) -> 0 | X120: =SUM(X7:X119) -> 0 | Y120: =SUM(Y7:Y119) -> 0 | Z120: =IF(V120,Y120/V120,0) -> 0 | AA120: =SUM(AA7:AA119) -> 0 | AB120: =SUM(AB7:AB119) -> 0 | AC120: =SUM(AC7:AC119) -> 0 | AD120: =SUM(AD7:AD119) -> 0 | AE120: =IF(AA120,AD120/AA120,0) -> 0 | AF120: =SUM(AF7:AF119) -> 0 | AG120: =SUM(AG7:AG119) -> 0 | AH120: =SUM(AH7:AH119) -> 0 | AI120: =SUM(AI7:AI119) -> 0 | AJ120: =IF(AF120,AI120/AF120,0) -> 0

Sheet Ciclo de Estudos
U2: =NOW() -> 2023-09-05T17:36:10.850
E6: 2022-02-28 | I6: 2023-11-26 | M6: 0.8333333333 | Q6: =DATEDIF(U2,I6,"D") -> 82
B8: 1 | D8: SEG | H8: TER | L8: QUA | P8: QUI | T8: SEX | X8: SÁB | AB8: DOM | AF8: META SEMANAL
D9: HORA | E9: =E6 -> 2022-02-28 | H9: HORA | I9: =E9+1 -> 2022-03-01 | L9: HORA | M9: =I9+1 -> 2022-03-02 | P9: HORA | Q9: =M9+1 -> 2022-03-03 | T9: HORA | U9: =Q9+1 -> 2022-03-04 | X9: HORA | Y9: =U9+1 -> 2022-03-05 | AB9: HORA | AC9: =Y9+1 -> 2022-03-06 | AF9: META SEMANAL
J10: 01:00:00 | AF10: =M6 -> 0.8333333333
AF11: % REALIZADO
AF12: =AF15/AF10 -> 0.05
AF13: HORAS NA SEMANA
AF14: HORAS NA SEMANA
F15: =SUM(F10:F14) -> 00:00:00 | J15: =SUM(J10:J14) -> 01:00:00 | N15: =SUM(N10:N14) -> 00:00:00 | R15: =SUM(R10:R14) -> 00:00:00 | V15: =SUM(V10:V14) -> 00:00:00 | Z15: =SUM(Z10:Z14) -> 00:00:00 | AD15: =SUM(AD10:AD14) -> 00:00:00 | AF15: =SUM(F15+J15+N15+R15+V15+Z15+AD15) -> 0.04166666667
B17: =B8+1 -> 2 | D17: SEG | H17: TER | L17: QUA | P17: QUI | T17: SEX | X17: SÁB | AB17: DOM | AF17: META SEMANAL
D18: HORA | E18: =AC9+1 -> 2022-03-07 | H18: HORA | I18: =E18+1 -> 2022-03-08 | L18: HORA | M18: =I18+1 -> 2022-03-09 | P18: HORA | Q18: =M18+1 -> 2022-03-10 | T18: HORA | U18: =Q18+1 -> 2022-03-11 | X18: HORA | Y18: =U18+1 -> 2022-03-12 | AB18: HORA | AC18: =Y18+1 -> 2022-03-13 | AF18: META SEMANAL
AF19: =AF10 -> 0.8333333333
AF20: % REALIZADO
AF21: =AF24/AF19 -> 0
AF22: HORAS NA SEMANA
AF23: HORAS NA SEMANA
F24: =SUM(F19:F23) -> 00:00:00 | J24: =SUM(J19:J23) -> 00:00:00 | N24: =SUM(N19:N23) -> 00:00:00 | R24: =SUM(R19:R23) -> 00:00:00 | V24: =SUM(V19:V23) -> 00:00:00 | Z24: =SUM(Z19:Z23) -> 00:00:00 | AD24: =SUM(AD19:AD23) -> 00:00:00 | AF24: =SUM(F24+J24+N24+R24+V24+Z24+AD24) -> 0
B26: =B17+1 -> 3 | D26: SEG | H26: TER | L26: QUA | P26: QUI | T26: SEX | X26: SÁB | AB26: DOM | AF26: META SEMANAL
D27: HORA | E27: =AC18+1 -> 2022-03-14 | H27: HORA | I27: =E27+1 -> 2022-03-15 | L27: HORA | M27: =I27+1 -> 2022-03-16 | P27: HORA | Q27: =M27+1 -> 2022-03-17 | T27: HORA | U27: =Q27+1 -> 2022-03-18 | X27: HORA | Y27: =U27+1 -> 2022-03-19 | AB27: HORA | AC27: =Y27+1 -> 2022-03-20 | AF27: META SEMANAL
AF28: =AF19 -> 0.8333333333
AF29: % REALIZADO
AF30: =AF33/AF28 -> 0
AF31: HORAS NA SEMANA
AF32: HORAS NA SEMANA
F33: =SUM(F28:F32) -> 00:00:00 | J33: =SUM(J28:J32) -> 00:00:00 | N33: =SUM(N28:N32) -> 00:00:00 | R33: =SUM(R28:R32) -> 00:00:00 | V33: =SUM(V28:V32) -> 00:00:00 | Z33: =SUM(Z28:Z32) -> 00:00:00 | AD33: =SUM(AD28:AD32) -> 00:00:00 | AF33: =SUM(F33+J33+N33+R33+V33+Z33+AD33) -> 0
B35: =B26+1 -> 4 | D35: SEG | H35: TER | L35: QUA | P35: QUI | T35: SEX | X35: SÁB | AB35: DOM | AF35: META SEMANAL
D36: HORA | E36: =AC27+1 -> 2022-03-21 | H36: HORA | I36: =E36+1 -> 2022-03-22 | L36: HORA | M36: =I36+1 -> 2022-03-23 | P36: HORA | Q36: =M36+1 -> 2022-03-24 | T36: HORA | U36: =Q36+1 -> 2022-03-25 | X36: HORA | Y36: =U36+1 -> 2022-03-26 | AB36: HORA | AC36: =Y36+1 -> 2022-03-27 | AF36: META SEMANAL
AF37: =AF28 -> 0.8333333333
AF38: % REALIZADO
AF39: =AF42/AF37 -> 0
AF40: HORAS NA SEMANA
AF41: HORAS NA SEMANA
F42: =SUM(F37:F41) -> 00:00:00 | J42: =SUM(J37:J41) -> 00:00:00 | N42: =SUM(N37:N41) -> 00:00:00 | R42: =SUM(R37:R41) -> 00:00:00 | V42: =SUM(V37:V41) -> 00:00:00 | Z42: =SUM(Z37:Z41) -> 00:00:00 | AD42: =SUM(AD37:AD41) -> 00:00:00 | AF42: =SUM(F42+J42+N42+R42+V42+Z42+AD42) -> 0
B44: =B35+1 -> 5 | D44: SEG | H44: TER | L44: QUA | P44: QUI | T44: SEX | X44: SÁB | AB44: DOM | AF44: META SEMANAL
D45: HORA | E45: =AC36+1 -> 2022-03-28 | H45: HORA | I45: =E45+1 -> 2022-03-29 | L45: HORA | M45: =I45+1 -> 2022-03-30 | P45: HORA | Q45: =M45+1 -> 2022-03-31 | T45: HORA | U45: =Q45+1 -> 2022-04-01 | X45: HORA | Y45: =U45+1 -> 2022-04-02 | AB45: HORA | AC45: =Y45+1 -> 2022-04-03 | AF45: META SEMANAL
AF46: =AF37 -> 0.8333333333
AF47: % REALIZADO
AF48: =AF51/AF46 -> 0
AF49: HORAS NA SEMANA
AF50: HORAS NA SEMANA
F51: =SUM(F46:F50) -> 00:00:00 | J51: =SUM(J46:J50) -> 00:00:00 | N51: =SUM(N46:N50) -> 00:00:00 | R51: =SUM(R46:R50) -> 00:00:00 | V51: =SUM(V46:V50) -> 00:00:00 | Z51: =SUM(Z46:Z50) -> 00:00:00 | AD51: =SUM(AD46:AD50) -> 00:00:00 | AF51: =SUM(F51+J51+N51+R51+V51+Z51+AD51) -> 0
B53: =B44+1 -> 6 | D53: SEG | H53: TER | L53: QUA | P53: QUI | T53: SEX | X53: SÁB | AB53: DOM | AF53: META SEMANAL
D54: HORA | E54: =AC45+1 -> 2022-04-04 | H54: HORA | I54: =E54+1 -> 2022-04-05 | L54: HORA | M54: =I54+1 -> 2022-04-06 | P54: HORA | Q54: =M54+1 -> 2022-04-07 | T54: HORA | U54: =Q54+1 -> 2022-04-08 | X54: HORA | Y54: =U54+1 -> 2022-04-09 | AB54: HORA | AC54: =Y54+1 -> 2022-04-10 | AF54: META SEMANAL
AF55: =AF46 -> 0.8333333333
AF56: % REALIZADO
AF57: =AF60/AF55 -> 0
AF58: HORAS NA SEMANA
AF59: HORAS NA SEMANA
F60: =SUM(F55:F59) -> 00:00:00 | J60: =SUM(J55:J59) -> 00:00:00 | N60: =SUM(N55:N59) -> 00:00:00 | R60: =SUM(R55:R59) -> 00:00:00 | V60: =SUM(V55:V59) -> 00:00:00 | Z60: =SUM(Z55:Z59) -> 00:00:00 | AD60: =SUM(AD55:AD59) -> 00:00:00 | AF60: =SUM(F60+J60+N60+R60+V60+Z60+AD60) -> 0
B62: =B53+1 -> 7 | D62: SEG | H62: TER | L62: QUA | P62: QUI | T62: SEX | X62: SÁB | AB62: DOM | AF62: META SEMANAL
D63: HORA | E63: =AC54+1 -> 2022-04-11 | H63: HORA | I63: =E63+1 -> 2022-04-12 | L63: HORA | M63: =I63+1 -> 2022-04-13 | P63: HORA | Q63: =M63+1 -> 2022-04-14 | T63: HORA | U63: =Q63+1 -> 2022-04-15 | X63: HORA | Y63: =U63+1 -> 2022-04-16 | AB63: HORA | AC63: =Y63+1 -> 2022-04-17 | AF63: META SEMANAL
AF64: =AF55 -> 0.8333333333
AF65: % REALIZADO
AF66: =AF69/AF64 -> 0
AF67: HORAS NA SEMANA
AF68: HORAS NA SEMANA
F69: =SUM(F64:F68) -> 00:00:00 | J69: =SUM(J64:J68) -> 00:00:00 | N69: =SUM(N64:N68) -> 00:00:00 | R69: =SUM(R64:R68) -> 00:00:00 | V69: =SUM(V64:V68) -> 00:00:00 | Z69: =SUM(Z64:Z68) -> 00:00:00 | AD69: =SUM(AD64:AD68) -> 00:00:00 | AF69: =SUM(F69+J69+N69+R69+V69+Z69+AD69) -> 0
B71: =B62+1 -> 8 | D71: SEG | H71: TER | L71: QUA | P71: QUI | T71: SEX | X71: SÁB | AB71: DOM | AF71: META SEMANAL
D72: HORA | E72: =AC63+1 -> 2022-04-18 | H72: HORA | I72: =E72+1 -> 2022-04-19 | L72: HORA | M72: =I72+1 -> 2022-04-20 | P72: HORA | Q72: =M72+1 -> 2022-04-21 | T72: HORA | U72: =Q72+1 -> 2022-04-22 | X72: HORA | Y72: =U72+1 -> 2022-04-23 | AB72: HORA | AC72: =Y72+1 -> 2022-04-24 | AF72: META SEMANAL
AF73: =AF64 -> 0.8333333333
AF74: % REALIZADO
AF75: =AF78/AF73 -> 0
AF76: HORAS NA SEMANA
AF77: HORAS NA SEMANA
F78: =SUM(F73:F77) -> 00:00:00 | J78: =SUM(J73:J77) -> 00:00:00 | N78: =SUM(N73:N77) -> 00:00:00 | R78: =SUM(R73:R77) -> 00:00:00 | V78: =SUM(V73:V77) -> 00:00:00 | Z78: =SUM(Z73:Z77) -> 00:00:00 | AD78: =SUM(AD73:AD77) -> 00:00:00 | AF78: =SUM(F78+J78+N78+R78+V78+Z78+AD78) -> 0
B80: =B71+1 -> 9 | D80: SEG | H80: TER | L80: QUA | P80: QUI | T80: SEX | X80: SÁB | AB80: DOM | AF80: META SEMANAL
D81: HORA | E81: =AC72+1 -> 2022-04-25 | H81: HORA | I81: =E81+1 -> 2022-04-26 | L81: HORA | M81: =I81+1 -> 2022-04-27 | P81: HORA | Q81: =M81+1 -> 2022-04-28 | T81: HORA | U81: =Q81+1 -> 2022-04-29 | X81: HORA | Y81: =U81+1 -> 2022-04-30 | AB81: HORA | AC81: =Y81+1 -> 2022-05-01 | AF81: META SEMANAL
AF82: =AF73 -> 0.8333333333
AF83: % REALIZADO
AF84: =AF87/AF82 -> 0
AF85: HORAS NA SEMANA
AF86: HORAS NA SEMANA
F87: =SUM(F82:F86) -> 00:00:00 | J87: =SUM(J82:J86) -> 00:00:00 | N87: =SUM(N82:N86) -> 00:00:00 | R87: =SUM(R82:R86) -> 00:00:00 | V87: =SUM(V82:V86) -> 00:00:00 | Z87: =SUM(Z82:Z86) -> 00:00:00 | AD87: =SUM(AD82:AD86) -> 00:00:00 | AF87: =SUM(F87+J87+N87+R87+V87+Z87+AD87) -> 0
B89: =B80+1 -> 10 | D89: SEG | H89: TER | L89: QUA | P89: QUI | T89: SEX | X89: SÁB | AB89: DOM | AF89: META SEMANAL
D90: HORA | E90: =AC81+1 -> 2022-05-02 | H90: HORA | I90: =E90+1 -> 2022-05-03 | L90: HORA | M90: =I90+1 -> 2022-05-04 | P90: HORA | Q90: =M90+1 -> 2022-05-05 | T90: HORA | U90: =Q90+1 -> 2022-05-06 | X90: HORA | Y90: =U90+1 -> 2022-05-07 | AB90: HORA | AC90: =Y90+1 -> 2022-05-08 | AF90: META SEMANAL
AF91: =AF82 -> 0.8333333333
AF92: % REALIZADO
AF93: =AF96/AF91 -> 0
AF94: HORAS NA SEMANA
AF95: HORAS NA SEMANA
F96: =SUM(F91:F95) -> 00:00:00 | J96: =SUM(J91:J95) -> 00:00:00 | N96: =SUM(N91:N95) -> 00:00:00 | R96: =SUM(R91:R95) -> 00:00:00 | V96: =SUM(V91:V95) -> 00:00:00 | Z96: =SUM(Z91:Z95) -> 00:00:00 | AD96: =SUM(AD91:AD95) -> 00:00:00 | AF96: =SUM(F96+J96+N96+R96+V96+Z96+AD96) -> 0
B98: =B89+1 -> 11 | D98: SEG | H98: TER | L98: QUA | P98: QUI | T98: SEX | X98: SÁB | AB98: DOM | AF98: META SEMANAL
D99: HORA | E99: =AC90+1 -> 2022-05-09 | H99: HORA | I99: =E99+1 -> 2022-05-10 | L99: HORA | M99: =I99+1 -> 2022-05-11 | P99: HORA | Q99: =M99+1 -> 2022-05-12 | T99: HORA | U99: =Q99+1 -> 2022-05-13 | X99: HORA | Y99: =U99+1 -> 2022-05-14 | AB99: HORA | AC99: =Y99+1 -> 2022-05-15 | AF99: META SEMANAL
AF100: =AF91 -> 0.8333333333
AF101: % REALIZADO
AF102: =AF105/AF100 -> 0
AF103: HORAS NA SEMANA
AF104: HORAS NA SEMANA
F105: =SUM(F100:F104) -> 00:00:00 | J105: =SUM(J100:J104) -> 00:00:00 | N105: =SUM(N100:N104) -> 00:00:00 | R105: =SUM(R100:R104) -> 00:00:00 | V105: =SUM(V100:V104) -> 00:00:00 | Z105: =SUM(Z100:Z104) -> 00:00:00 | AD105: =SUM(AD100:AD104) -> 00:00:00 | AF105: =SUM(F105+J105+N105+R105+V105+Z105+AD105) -> 0
B107: =B98+1 -> 12 | D107: SEG | H107: TER | L107: QUA | P107: QUI | T107: SEX | X107: SÁB | AB107: DOM | AF107: META SEMANAL
D108: HORA | E108: =AC99+1 -> 2022-05-16 | H108: HORA | I108: =E108+1 -> 2022-05-17 | L108: HORA | M108: =I108+1 -> 2022-05-18 | P108: HORA | Q108: =M108+1 -> 2022-05-19 | T108: HORA | U108: =Q108+1 -> 2022-05-20 | X108: HORA | Y108: =U108+1 -> 2022-05-21 | AB108: HORA | AC108: =Y108+1 -> 2022-05-22 | AF108: META SEMANAL
AF109: =AF100 -> 0.8333333333
AF110: % REALIZADO
AF111: =AF114/AF109 -> 0
AF112: HORAS NA SEMANA
AF113: HORAS NA SEMANA
F114: =SUM(F109:F113) -> 00:00:00 | J114: =SUM(J109:J113) -> 00:00:00 | N114: =SUM(N109:N113) -> 00:00:00 | R114: =SUM(R109:R113) -> 00:00:00 | V114: =SUM(V109:V113) -> 00:00:00 | Z114: =SUM(Z109:Z113) -> 00:00:00 | AD114: =SUM(AD109:AD113) -> 00:00:00 | AF114: =SUM(F114+J114+N114+R114+V114+Z114+AD114) -> 0
B116: =B107+1 -> 13 | D116: SEG | H116: TER | L116: QUA | P116: QUI | T116: SEX | X116: SÁB | AB116: DOM | AF116: META SEMANAL
D117: HORA | E117: =AC108+1 -> 2022-05-23 | H117: HORA | I117: =E117+1 -> 2022-05-24 | L117: HORA | M117: =I117+1 -> 2022-05-25 | P117: HORA | Q117: =M117+1 -> 2022-05-26 | T117: HORA | U117: =Q117+1 -> 2022-05-27 | X117: HORA | Y117: =U117+1 -> 2022-05-28 | AB117: HORA | AC117: =Y117+1 -> 2022-05-29 | AF117: META SEMANAL
AF118: =AF109 -> 0.8333333333
AF119: % REALIZADO
AF120: =AF123/AF118 -> 0
AF121: HORAS NA SEMANA
AF122: HORAS NA SEMANA
F123: =SUM(F118:F122) -> 00:00:00 | J123: =SUM(J118:J122) -> 00:00:00 | N123: =SUM(N118:N122) -> 00:00:00 | R123: =SUM(R118:R122) -> 00:00:00 | V123: =SUM(V118:V122) -> 00:00:00 | Z123: =SUM(Z118:Z122) -> 00:00:00 | AD123: =SUM(AD118:AD122) -> 00:00:00 | AF123: =SUM(F123+J123+N123+R123+V123+Z123+AD123) -> 0
B125: =B116+1 -> 14 | D125: SEG | H125: TER | L125: QUA | P125: QUI | T125: SEX | X125: SÁB | AB125: DOM | AF125: META SEMANAL
D126: HORA | E126: =AC117+1 -> 2022-05-30 | H126: HORA | I126: =E126+1 -> 2022-05-31 | L126: HORA | M126: =I126+1 -> 2022-06-01 | P126: HORA | Q126: =M126+1 -> 2022-06-02 | T126: HORA | U126: =Q126+1 -> 2022-06-03 | X126: HORA | Y126: =U126+1 -> 2022-06-04 | AB126: HORA | AC126: =Y126+1 -> 2022-06-05 | AF126: META SEMANAL
AF127: =AF118 -> 0.8333333333
AF128: % REALIZADO
AF129: =AF132/AF127 -> 0
AF130: HORAS NA SEMANA
AF131: HORAS NA SEMANA
F132: =SUM(F127:F131) -> 00:00:00 | J132: =SUM(J127:J131) -> 00:00:00 | N132: =SUM(N127:N131) -> 00:00:00 | R132: =SUM(R127:R131) -> 00:00:00 | V132: =SUM(V127:V131) -> 00:00:00 | Z132: =SUM(Z127:Z131) -> 00:00:00 | AD132: =SUM(AD127:AD131) -> 00:00:00 | AF132: =SUM(F132+J132+N132+R132+V132+Z132+AD132) -> 0
B134: =B125+1 -> 15 | D134: SEG | H134: TER | L134: QUA | P134: QUI | T134: SEX | X134: SÁB | AB134: DOM | AF134: META SEMANAL
D135: HORA | E135: =AC126+1 -> 2022-06-06 | H135: HORA | I135: =E135+1 -> 2022-06-07 | L135: HORA | M135: =I135+1 -> 2022-06-08 | P135: HORA | Q135: =M135+1 -> 2022-06-09 | T135: HORA | U135: =Q135+1 -> 2022-06-10 | X135: HORA | Y135: =U135+1 -> 2022-06-11 | AB135: HORA | AC135: =Y135+1 -> 2022-06-12 | AF135: META SEMANAL
AF136: =AF127 -> 0.8333333333
AF137: % REALIZADO
AF138: =AF141/AF136 -> 0
AF139: HORAS NA SEMANA
AF140: HORAS NA SEMANA
F141: =SUM(F136:F140) -> 00:00:00 | J141: =SUM(J136:J140) -> 00:00:00 | N141: =SUM(N136:N140) -> 00:00:00 | R141: =SUM(R136:R140) -> 00:00:00 | V141: =SUM(V136:V140) -> 00:00:00 | Z141: =SUM(Z136:Z140) -> 00:00:00 | AD141: =SUM(AD136:AD140) -> 00:00:00 | AF141: =SUM(F141+J141+N141+R141+V141+Z141+AD141) -> 0
B143: =B134+1 -> 16 | D143: SEG | H143: TER | L143: QUA | P143: QUI | T143: SEX | X143: SÁB | AB143: DOM | AF143: META SEMANAL
D144: HORA | E144: =AC135+1 -> 2022-06-13 | H144: HORA | I144: =E144+1 -> 2022-06-14 | L144: HORA | M144: =I144+1 -> 2022-06-15 | P144: HORA | Q144: =M144+1 -> 2022-06-16 | T144: HORA | U144: =Q144+1 -> 2022-06-17 | X144: HORA | Y144: =U144+1 -> 2022-06-18 | AB144: HORA | AC144: =Y144+1 -> 2022-06-19 | AF144: META SEMANAL
AF145: =AF136 -> 0.8333333333
AF146: % REALIZADO
AF147: =AF150/AF145 -> 0
AF148: HORAS NA SEMANA
AF149: HORAS NA SEMANA
F150: =SUM(F145:F149) -> 00:00:00 | J150: =SUM(J145:J149) -> 00:00:00 | N150: =SUM(N145:N149) -> 00:00:00 | R150: =SUM(R145:R149) -> 00:00:00 | V150: =SUM(V145:V149) -> 00:00:00 | Z150: =SUM(Z145:Z149) -> 00:00:00 | AD150: =SUM(AD145:AD149) -> 00:00:00 | AF150: =SUM(F150+J150+N150+R150+V150+Z150+AD150) -> 0
B152: =B143+1 -> 17 | D152: SEG | H152: TER | L152: QUA | P152: QUI | T152: SEX | X152: SÁB | AB152: DOM | AF152: META SEMANAL
D153: HORA | E153: =AC144+1 -> 2022-06-20 | H153: HORA | I153: =E153+1 -> 2022-06-21 | L153: HORA | M153: =I153+1 -> 2022-06-22 | P153: HORA | Q153: =M153+1 -> 2022-06-23 | T153: HORA | U153: =Q153+1 -> 2022-06-24 | X153: HORA | Y153: =U153+1 -> 2022-06-25 | AB153: HORA | AC153: =Y153+1 -> 2022-06-26 | AF153: META SEMANAL
AF154: =AF145 -> 0.8333333333
AF155: % REALIZADO
AF156: =AF159/AF154 -> 0
AF157: HORAS NA SEMANA
AF158: HORAS NA SEMANA
F159: =SUM(F154:F158) -> 00:00:00 | J159: =SUM(J154:J158) -> 00:00:00 | N159: =SUM(N154:N158) -> 00:00:00 | R159: =SUM(R154:R158) -> 00:00:00 | V159: =SUM(V154:V158) -> 00:00:00 | Z159: =SUM(Z154:Z158) -> 00:00:00 | AD159: =SUM(AD154:AD158) -> 00:00:00 | AF159: =SUM(F159+J159+N159+R159+V159+Z159+AD159) -> 0
B161: =B152+1 -> 18 | D161: SEG | H161: TER | L161: QUA | P161: QUI | T161: SEX | X161: SÁB | AB161: DOM | AF161: META SEMANAL
D162: HORA | E162: =AC153+1 -> 2022-06-27 | H162: HORA | I162: =E162+1 -> 2022-06-28 | L162: HORA | M162: =I162+1 -> 2022-06-29 | P162: HORA | Q162: =M162+1 -> 2022-06-30 | T162: HORA | U162: =Q162+1 -> 2022-07-01 | X162: HORA | Y162: =U162+1 -> 2022-07-02 | AB162: HORA | AC162: =Y162+1 -> 2022-07-03 | AF162: META SEMANAL
AF163: =AF154 -> 0.8333333333
AF164: % REALIZADO
AF165: =AF168/AF163 -> 0
AF166: HORAS NA SEMANA
AF167: HORAS NA SEMANA
F168: =SUM(F163:F167) -> 00:00:00 | J168: =SUM(J163:J167) -> 00:00:00 | N168: =SUM(N163:N167) -> 00:00:00 | R168: =SUM(R163:R167) -> 00:00:00 | V168: =SUM(V163:V167) -> 00:00:00 | Z168: =SUM(Z163:Z167) -> 00:00:00 | AD168: =SUM(AD163:AD167) -> 00:00:00 | AF168: =SUM(F168+J168+N168+R168+V168+Z168+AD168) -> 0
B170: =B161+1 -> 19 | D170: SEG | H170: TER | L170: QUA | P170: QUI | T170: SEX | X170: SÁB | AB170: DOM | AF170: META SEMANAL
D171: HORA | E171: =AC162+1 -> 2022-07-04 | H171: HORA | I171: =E171+1 -> 2022-07-05 | L171: HORA | M171: =I171+1 -> 2022-07-06 | P171: HORA | Q171: =M171+1 -> 2022-07-07 | T171: HORA | U171: =Q171+1 -> 2022-07-08 | X171: HORA | Y171: =U171+1 -> 2022-07-09 | AB171: HORA | AC171: =Y171+1 -> 2022-07-10 | AF171: META SEMANAL
AF172: =AF163 -> 0.8333333333
AF173: % REALIZADO
AF174: =AF177/AF172 -> 0
AF175: HORAS NA SEMANA
AF176: HORAS NA SEMANA
F177: =SUM(F172:F176) -> 00:00:00 | J177: =SUM(J172:J176) -> 00:00:00 | N177: =SUM(N172:N176) -> 00:00:00 | R177: =SUM(R172:R176) -> 00:00:00 | V177: =SUM(V172:V176) -> 00:00:00 | Z177: =SUM(Z172:Z176) -> 00:00:00 | AD177: =SUM(AD172:AD176) -> 00:00:00 | AF177: =SUM(F177+J177+N177+R177+V177+Z177+AD177) -> 0
B179: =B170+1 -> 20 | D179: SEG | H179: TER | L179: QUA | P179: QUI | T179: SEX | X179: SÁB | AB179: DOM | AF179: META SEMANAL
D180: HORA | E180: =AC171+1 -> 2022-07-11 | H180: HORA | I180: =E180+1 -> 2022-07-12 | L180: HORA | M180: =I180+1 -> 2022-07-13 | P180: HORA | Q180: =M180+1 -> 2022-07-14 | T180: HORA | U180: =Q180+1 -> 2022-07-15 | X180: HORA | Y180: =U180+1 -> 2022-07-16 | AB180: HORA | AC180: =Y180+1 -> 2022-07-17 | AF180: META SEMANAL
AF181: =AF172 -> 0.8333333333
AF182: % REALIZADO
AF183: =AF186/AF181 -> 0
AF184: HORAS NA SEMANA
AF185: HORAS NA SEMANA
F186: =SUM(F181:F185) -> 00:00:00 | J186: =SUM(J181:J185) -> 00:00:00 | N186: =SUM(N181:N185) -> 00:00:00 | R186: =SUM(R181:R185) -> 00:00:00 | V186: =SUM(V181:V185) -> 00:00:00 | Z186: =SUM(Z181:Z185) -> 00:00:00 | AD186: =SUM(AD181:AD185) -> 00:00:00 | AF186: =SUM(F186+J186+N186+R186+V186+Z186+AD186) -> 0
B188: =B179+1 -> 21 | D188: SEG | H188: TER | L188: QUA | P188: QUI | T188: SEX | X188: SÁB | AB188: DOM | AF188: META SEMANAL
D189: HORA | E189: =AC180+1 -> 2022-07-18 | H189: HORA | I189: =E189+1 -> 2022-07-19 | L189: HORA | M189: =I189+1 -> 2022-07-20 | P189: HORA | Q189: =M189+1 -> 2022-07-21 | T189: HORA | U189: =Q189+1 -> 2022-07-22 | X189: HORA | Y189: =U189+1 -> 2022-07-23 | AB189: HORA | AC189: =Y189+1 -> 2022-07-24 | AF189: META SEMANAL
AF190: =AF181 -> 0.8333333333
AF191: % REALIZADO
AF192: =AF195/AF190 -> 0
AF193: HORAS NA SEMANA
AF194: HORAS NA SEMANA
F195: =SUM(F190:F194) -> 00:00:00 | J195: =SUM(J190:J194) -> 00:00:00 | N195: =SUM(N190:N194) -> 00:00:00 | R195: =SUM(R190:R194) -> 00:00:00 | V195: =SUM(V190:V194) -> 00:00:00 | Z195: =SUM(Z190:Z194) -> 00:00:00 | AD195: =SUM(AD190:AD194) -> 00:00:00 | AF195: =SUM(F195+J195+N195+R195+V195+Z195+AD195) -> 0
B197: =B188+1 -> 22 | D197: SEG | H197: TER | L197: QUA | P197: QUI | T197: SEX | X197: SÁB | AB197: DOM | AF197: META SEMANAL
D198: HORA | E198: =AC189+1 -> 2022-07-25 | H198: HORA | I198: =E198+1 -> 2022-07-26 | L198: HORA | M198: =I198+1 -> 2022-07-27 | P198: HORA | Q198: =M198+1 -> 2022-07-28 | T198: HORA | U198: =Q198+1 -> 2022-07-29 | X198: HORA | Y198: =U198+1 -> 2022-07-30 | AB198: HORA | AC198: =Y198+1 -> 2022-07-31 | AF198: META SEMANAL
AF199: =AF190 -> 0.8333333333
AF200: % REALIZADO
AF201: =AF204/AF199 -> 0
AF202: HORAS NA SEMANA
AF203: HORAS NA SEMANA
F204: =SUM(F199:F203) -> 00:00:00 | J204: =SUM(J199:J203) -> 00:00:00 | N204: =SUM(N199:N203) -> 00:00:00 | R204: =SUM(R199:R203) -> 00:00:00 | V204: =SUM(V199:V203) -> 00:00:00 | Z204: =SUM(Z199:Z203) -> 00:00:00 | AD204: =SUM(AD199:AD203) -> 00:00:00 | AF204: =SUM(F204+J204+N204+R204+V204+Z204+AD204) -> 0
B206: =B197+1 -> 23 | D206: SEG | H206: TER | L206: QUA | P206: QUI | T206: SEX | X206: SÁB | AB206: DOM | AF206: META SEMANAL
D207: HORA | E207: =AC198+1 -> 2022-08-01 | H207: HORA | I207: =E207+1 -> 2022-08-02 | L207: HORA | M207: =I207+1 -> 2022-08-03 | P207: HORA | Q207: =M207+1 -> 2022-08-04 | T207: HORA | U207: =Q207+1 -> 2022-08-05 | X207: HORA | Y207: =U207+1 -> 2022-08-06 | AB207: HORA | AC207: =Y207+1 -> 2022-08-07 | AF207: META SEMANAL
AF208: =AF199 -> 0.8333333333
AF209: % REALIZADO
AF210: =AF213/AF208 -> 0
AF211: HORAS NA SEMANA
AF212: HORAS NA SEMANA
F213: =SUM(F208:F212) -> 00:00:00 | J213: =SUM(J208:J212) -> 00:00:00 | N213: =SUM(N208:N212) -> 00:00:00 | R213: =SUM(R208:R212) -> 00:00:00 | V213: =SUM(V208:V212) -> 00:00:00 | Z213: =SUM(Z208:Z212) -> 00:00:00 | AD213: =SUM(AD208:AD212) -> 00:00:00 | AF213: =SUM(F213+J213+N213+R213+V213+Z213+AD213) -> 0
B215: =B206+1 -> 24 | D215: SEG | H215: TER | L215: QUA | P215: QUI | T215: SEX | X215: SÁB | AB215: DOM | AF215: META SEMANAL
D216: HORA | E216: =AC207+1 -> 2022-08-08 | H216: HORA | I216: =E216+1 -> 2022-08-09 | L216: HORA | M216: =I216+1 -> 2022-08-10 | P216: HORA | Q216: =M216+1 -> 2022-08-11 | T216: HORA | U216: =Q216+1 -> 2022-08-12 | X216: HORA | Y216: =U216+1 -> 2022-08-13 | AB216: HORA | AC216: =Y216+1 -> 2022-08-14 | AF216: META SEMANAL
AF217: =AF208 -> 0.8333333333
AF218: % REALIZADO
AF219: =AF222/AF217 -> 0
AF220: HORAS NA SEMANA
AF221: HORAS NA SEMANA
F222: =SUM(F217:F221) -> 00:00:00 | J222: =SUM(J217:J221) -> 00:00:00 | N222: =SUM(N217:N221) -> 00:00:00 | R222: =SUM(R217:R221) -> 00:00:00 | V222: =SUM(V217:V221) -> 00:00:00 | Z222: =SUM(Z217:Z221) -> 00:00:00 | AD222: =SUM(AD217:AD221) -> 00:00:00 | AF222: =SUM(F222+J222+N222+R222+V222+Z222+AD222) -> 0
B224: =B215+1 -> 25 | D224: SEG | H224: TER | L224: QUA | P224: QUI | T224: SEX | X224: SÁB | AB224: DOM | AF224: META SEMANAL
D225: HORA | E225: =AC216+1 -> 2022-08-15 | H225: HORA | I225: =E225+1 -> 2022-08-16 | L225: HORA | M225: =I225+1 -> 2022-08-17 | P225: HORA | Q225: =M225+1 -> 2022-08-18 | T225: HORA | U225: =Q225+1 -> 2022-08-19 | X225: HORA | Y225: =U225+1 -> 2022-08-20 | AB225: HORA | AC225: =Y225+1 -> 2022-08-21 | AF225: META SEMANAL
AF226: =AF217 -> 0.8333333333
AF227: % REALIZADO
AF228: =AF231/AF226 -> 0
AF229: HORAS NA SEMANA
... 66 more rows

Sheet resultados
K5: Banca | L5: qconcursos | R5: Banca | Y5: Banca | AF5: Banca | AM5: Banca | AT5: Banca | BA5: Banca | BH5: Banca | BO5: Banca | BV5: Banca | CC5: Banca | CJ5: Banca | CQ5: Banca | CX5: Banca | DE5: Banca | DL5: Banca | DS5: Banca | DZ5: Banca | EG5: Banca | EN5: Banca
B6: Q - Nº de Questões | D6: RESULTADO GERAL | K6: SIMULADO 1 | R6: SIMULADO 2 | Y6: SIMULADO 3 | AF6: SIMULADO 4 | AM6: SIMULADO 5 | AT6: SIMULADO 6 | BA6: SIMULADO 7 | BH6: SIMULADO 8 | BO6: SIMULADO 9 | BV6: SIMULADO 10 | CC6: SIMULADO 11 | CJ6: SIMULADO 12 | CQ6: SIMULADO 13 | CX6: SIMULADO 14 | DE6: SIMULADO 15 | DL6: SIMULADO 16 | DS6: SIMULADO 17 | DZ6: SIMULADO 18 | EG6: SIMULADO 19 | EN6: SIMULADO 20
B7: C - Questões Certas | D7: Q | E7: =D24 -> 0 | K7: Q | L7: =K24 -> 0 | R7: Q | S7: =R24 -> 0 | Y7: Q | Z7: =Y24 -> 0 | AF7: Q | AG7: =AF24 -> 0 | AM7: Q | AN7: =AM24 -> 0 | AT7: Q | AU7: =AT24 -> 0 | BA7: Q | BB7: =BA24 -> 0 | BH7: Q | BI7: =BH24 -> 0 | BO7: Q | BP7: =BO24 -> 0 | BV7: Q | BW7: =BV24 -> 0 | CC7: Q | CD7: =CC24 -> 0 | CJ7: Q | CK7: =CJ24 -> 0 | CQ7: Q | CR7: =CQ24 -> 0 | CX7: Q | CY7: =CX24 -> 0 | DE7: Q | DF7: =DE24 -> 0 | DL7: Q | DM7: =DL24 -> 0 | DS7: Q | DT7: =DS24 -> 0 | DZ7: Q | EA7: =DZ24 -> 0 | EG7: Q | EH7: =EG24 -> 0 | EN7: Q | EO7: =EN24 -> 0
B8: B - Questões em Branco | D8: TL | E8: =H24 -> 0 | K8: TL | L8: =O24 -> 0 | R8: TL | S8: =V24 -> 0 | Y8: TL | Z8: =AC24 -> 0 | AF8: TL | AG8: =AJ24 -> 0 | AM8: TL | AN8: =AQ24 -> 0 | AT8: TL | AU8: =AX24 -> 0 | BA8: TL | BB8: =BE24 -> 0 | BH8: TL | BI8: =BL24 -> 0 | BO8: TL | BP8: =BS24 -> 0 | BV8: TL | BW8: =BZ24 -> 0 | CC8: TL | CD8: =CG24 -> 0 | CJ8: TL | CK8: =CN24 -> 0 | CQ8: TL | CR8: =CU24 -> 0 | CX8: TL | CY8: =DB24 -> 0 | DE8: TL | DF8: =DI24 -> 0 | DL8: TL | DM8: =DP24 -> 0 | DS8: TL | DT8: =DW24 -> 0 | DZ8: TL | EA8: =ED24 -> 0 | EG8: TL | EH8: =EK24 -> 0 | EN8: TL | EO8: =ER24 -> 0
B9: E - Questões Erradas (colocar só com a banca CESPE) | D9: % Acumulado | G9: =IF(E7,E8/E7,0) -> 0 | K9: % Simulado 1 | N9: =IF(L7,L8/L7,0) -> 0 | R9: % Simulado 2 | U9: =IF(S7,S8/S7,0) -> 0 | Y9: % Simulado 3 | AB9: =IF(Z7,Z8/Z7,0) -> 0 | AF9: % Simulado 4 | AI9: =IF(AG7,AG8/AG7,0) -> 0 | AM9: % Simulado 5 | AP9: =IF(AN7,AN8/AN7,0) -> 0 | AT9: % Simulado 6 | AW9: =IF(AU7,AU8/AU7,0) -> 0 | BA9: % Simulado 7 | BD9: =IF(BB7,BB8/BB7,0) -> 0 | BH9: % Simulado 8 | BK9: =IF(BI7,BI8/BI7,0) -> 0 | BO9: % Simulado 1 | BR9: =IF(BP7,BP8/BP7,0) -> 0 | BV9: % Simulado 1 | BY9: =IF(BW7,BW8/BW7,0) -> 0 | CC9: % Simulado 1 | CF9: =IF(CD7,CD8/CD7,0) -> 0 | CJ9: % Simulado 12 | CM9: =IF(CK7,CK8/CK7,0) -> 0 | CQ9: % Simulado 13 | CT9: =IF(CR7,CR8/CR7,0) -> 0 | CX9: % Simulado 14 | DA9: =IF(CY7,CY8/CY7,0) -> 0 | DE9: % Simulado 15 | DH9: =IF(DF7,DF8/DF7,0) -> 0 | DL9: % Simulado 16 | DO9: =IF(DM7,DM8/DM7,0) -> 0 | DS9: % Simulado 17 | DV9: =IF(DT7,DT8/DT7,0) -> 0 | DZ9: % Simulado 18 | EC9: =IF(EA7,EA8/EA7,0) -> 0 | EG9: % Simulado 19 | EJ9: =IF(EH7,EH8/EH7,0) -> 0 | EN9: % Simulado 20 | EQ9: =IF(EO7,EO8/EO7,0) -> 0
B10: TL - Total de Pontos Líquidos
D12: Q | E12: C | F12: B | G12: E | H12: TL | I12: % | K12: Q | L12: C | M12: B | N12: E | O12: TL | P12: % | R12: Q | S12: C | T12: B | U12: E | V12: TL | W12: % | Y12: Q | Z12: C | AA12: B | AB12: E | AC12: TL | AD12: % | AF12: Q | AG12: C | AH12: B | AI12: E | AJ12: TL | AK12: % | AM12: Q | AN12: C | AO12: B | AP12: E | AQ12: TL | AR12: % | AT12: Q | AU12: C | AV12: B | AW12: E | AX12: TL | AY12: % | BA12: Q | BB12: C | BC12: B | BD12: E | BE12: TL | BF12: % | BH12: Q | BI12: C | BJ12: B | BK12: E | BL12: TL | BM12: % | BO12: Q | BP12: C | BQ12: B | BR12: E | BS12: TL | BT12: % | BV12: Q | BW12: C | BX12: B | BY12: E | BZ12: TL | CA12: % | CC12: Q | CD12: C | CE12: B | CF12: E | CG12: TL | CH12: % | CJ12: Q | CK12: C | CL12: B | CM12: E | CN12: TL | CO12: % | CQ12: Q | CR12: C | CS12: B | CT12: E | CU12: TL | CV12: % | CX12: Q | CY12: C | CZ12: B | DA12: E | DB12: TL | DC12: % | DE12: Q | DF12: C | DG12: B | DH12: E | DI12: TL | DJ12: % | DL12: Q | DM12: C | DN12: B | DO12: E | DP12: TL | DQ12: % | DS12: Q | DT12: C | DU12: B | DV12: E | DW12: TL | DX12: % | DZ12: Q | EA12: C | EB12: B | EC12: E | ED12: TL | EE12: % | EG12: Q | EH12: C | EI12: B | EJ12: E | EK12: TL | EL12: % | EN12: Q | EO12: C | EP12: B | EQ12: E | ER12: TL | ES12: %
B13: =Concurso!D5 -> INFORMÁTICA | D13: =SUM(K13,R13,Y13,AF13,AM13,AT13,BA13,BH13,BO13,BV13,CC13,CJ13,CQ13,CX13,DE13,DL13,DS13,DZ13,EG13,EN13) -> 0 | E13: =SUM(L13,S13,Z13,AG13,AN13,AU13,BB13,BI13,BP13,BW13,CD13,CK13,CR13,CY13,DF13,DM13,DT13,EA13,EH13,EO13) -> 0 | F13: =SUM(M13,T13,AA13,AH13,AO13,AV13,BC13,BJ13,BQ13,BX13,CE13,CL13,CS13,CZ13,DG13,DN13,DU13,EB13,EI13,EP13) -> 0 | G13: =SUM(N13,U13,AB13,AI13,AP13,AW13,BD13,BK13,BR13,BY13,CF13,CM13,CT13,DA13,DH13,DO13,DV13,EC13,EJ13,EQ13) -> 0 | H13: =SUM(O13,V13,AC13,AJ13,AQ13,AX13,BE13,BL13,BS13,BZ13,CG13,CN13,CU13,DB13,DI13,DP13,DW13,ED13,EK13,ER13) -> 0 | I13: =IF(D13,H13/D13,0) -> 0 | O13: =L13-N13 -> 0 | P13: =IF(K13,O13/K13,0) -> 0 | V13: =S13-U13 -> 0 | W13: =IF(R13,V13/R13,0) -> 0 | AC13: =Z13-AB13 -> 0 | AD13: =IF(Y13,AC13/Y13,0) -> 0 | AJ13: =AG13-AI13 -> 0 | AK13: =IF(AF13,AJ13/AF13,0) -> 0 | AQ13: =AN13-AP13 -> 0 | AR13: =IF(AM13,AQ13/AM13,0) -> 0 | AX13: =AU13-AW13 -> 0 | AY13: =IF(AT13,AX13/AT13,0) -> 0 | BE13: =BB13-BD13 -> 0 | BF13: =IF(BA13,BE13/BA13,0) -> 0 | BL13: =BI13-BK13 -> 0 | BM13: =IF(BH13,BL13/BH13,0) -> 0 | BS13: =BP13-BR13 -> 0 | BT13: =IF(BO13,BS13/BO13,0) -> 0 | BZ13: =BW13-BY13 -> 0 | CA13: =IF(BV13,BZ13/BV13,0) -> 0 | CG13: =CD13-CF13 -> 0 | CH13: =IF(CC13,CG13/CC13,0) -> 0 | CN13: =CK13-CM13 -> 0 | CO13: =IF(CJ13,CN13/CJ13,0) -> 0 | CU13: =CR13-CT13 -> 0 | CV13: =IF(CQ13,CU13/CQ13,0) -> 0 | DB13: =CY13-DA13 -> 0 | DC13: =IF(CX13,DB13/CX13,0) -> 0 | DI13: =DF13-DH13 -> 0 | DJ13: =IF(DE13,DI13/DE13,0) -> 0 | DP13: =DM13-DO13 -> 0 | DQ13: =IF(DL13,DP13/DL13,0) -> 0 | DW13: =DT13-DV13 -> 0 | DX13: =IF(DS13,DW13/DS13,0) -> 0 | ED13: =EA13-EC13 -> 0 | EE13: =IF(DZ13,ED13/DZ13,0) -> 0 | EK13: =EH13-EJ13 -> 0 | EL13: =IF(EG13,EK13/EG13,0) -> 0 | ER13: =EO13-EQ13 -> 0 | ES13: =IF(EN13,ER13/EN13,0) -> 0
B14: =Concurso!D6 -> RAC. LÓGICO | D14: 0 | E14: 0 | F14: 0 | G14: 0 | H14: 0 | I14: 0 | O14: 0 | P14: 0 | V14: 0 | W14: 0 | AC14: 0 | AD14: 0 | AJ14: 0 | AK14: 0 | AQ14: 0 | AR14: 0 | AX14: 0 | AY14: 0 | BE14: 0 | BF14: 0 | BL14: 0 | BM14: 0 | BS14: 0 | BT14: 0 | BZ14: 0 | CA14: 0 | CG14: 0 | CH14: 0 | CN14: 0 | CO14: 0 | CU14: 0 | CV14: 0 | DB14: 0 | DC14: 0 | DI14: 0 | DJ14: 0 | DP14: 0 | DQ14: 0 | DW14: 0 | DX14: 0 | ED14: 0 | EE14: 0 | EK14: 0 | EL14: 0 | ER14: 0 | ES14: 0
B15: DIR. CONSTITUCIONAL | D15: 0 | E15: 0 | F15: 0 | G15: 0 | H15: 0 | I15: 0 | O15: 0 | P15: 0 | V15: 0 | W15: 0 | AC15: 0 | AD15: 0 | AJ15: 0 | AK15: 0 | AQ15: 0 | AR15: 0 | AX15: 0 | AY15: 0 | BE15: 0 | BF15: 0 | BL15: 0 | BM15: 0 | BS15: 0 | BT15: 0 | BZ15: 0 | CA15: 0 | CG15: 0 | CH15: 0 | CN15: 0 | CO15: 0 | CU15: 0 | CV15: 0 | DB15: 0 | DC15: 0 | DI15: 0 | DJ15: 0 | DP15: 0 | DQ15: 0 | DW15: 0 | DX15: 0 | ED15: 0 | EE15: 0 | EK15: 0 | EL15: 0 | ER15: 0 | ES15: 0
B16: DIR. PENAL | D16: 0 | E16: 0 | F16: 0 | G16: 0 | H16: 0 | I16: 0 | O16: 0 | P16: 0 | V16: 0 | W16: 0 | AC16: 0 | AD16: 0 | AJ16: 0 | AK16: 0 | AQ16: 0 | AR16: 0 | AX16: 0 | AY16: 0 | BE16: 0 | BF16: 0 | BL16: 0 | BM16: 0 | BS16: 0 | BT16: 0 | BZ16: 0 | CA16: 0 | CG16: 0 | CH16: 0 | CN16: 0 | CO16: 0 | CU16: 0 | CV16: 0 | DB16: 0 | DC16: 0 | DI16: 0 | DJ16: 0 | DP16: 0 | DQ16: 0 | DW16: 0 | DX16: 0 | ED16: 0 | EE16: 0 | EK16: 0 | EL16: 0 | ER16: 0 | ES16: 0
B17: DIR. PROC. PENAL | D17: 0 | E17: 0 | F17: 0 | G17: 0 | H17: 0 | I17: 0 | O17: 0 | P17: 0 | V17: 0 | W17: 0 | AC17: 0 | AD17: 0 | AJ17: 0 | AK17: 0 | AQ17: 0 | AR17: 0 | AX17: 0 | AY17: 0 | BE17: 0 | BF17: 0 | BL17: 0 | BM17: 0 | BS17: 0 | BT17: 0 | BZ17: 0 | CA17: 0 | CG17: 0 | CH17: 0 | CN17: 0 | CO17: 0 | CU17: 0 | CV17: 0 | DB17: 0 | DC17: 0 | DI17: 0 | DJ17: 0 | DP17: 0 | DQ17: 0 | DW17: 0 | DX17: 0 | ED17: 0 | EE17: 0 | EK17: 0 | EL17: 0 | ER17: 0 | ES17: 0
B18: DIR. ADMINISTRATIVO | D18: 0 | E18: 0 | F18: 0 | G18: 0 | H18: 0 | I18: 0 | O18: 0 | P18: 0 | V18: 0 | W18: 0 | AC18: 0 | AD18: 0 | AJ18: 0 | AK18: 0 | AQ18: 0 | AR18: 0 | AX18: 0 | AY18: 0 | BE18: 0 | BF18: 0 | BL18: 0 | BM18: 0 | BS18: 0 | BT18: 0 | BZ18: 0 | CA18: 0 | CG18: 0 | CH18: 0 | CN18: 0 | CO18: 0 | CU18: 0 | CV18: 0 | DB18: 0 | DC18: 0 | DI18: 0 | DJ18: 0 | DP18: 0 | DQ18: 0 | DW18: 0 | DX18: 0 | ED18: 0 | EE18: 0 | EK18: 0 | EL18: 0 | ER18: 0 | ES18: 0
B19: DIR. HUMANOS | D19: 0 | E19: 0 | F19: 0 | G19: 0 | H19: 0 | I19: 0 | O19: 0 | P19: 0 | V19: 0 | W19: 0 | AC19: 0 | AD19: 0 | AJ19: 0 | AK19: 0 | AQ19: 0 | AR19: 0 | AX19: 0 | AY19: 0 | BE19: 0 | BF19: 0 | BL19: 0 | BM19: 0 | BS19: 0 | BT19: 0 | BZ19: 0 | CA19: 0 | CG19: 0 | CH19: 0 | CN19: 0 | CO19: 0 | CU19: 0 | CV19: 0 | DB19: 0 | DC19: 0 | DI19: 0 | DJ19: 0 | DP19: 0 | DQ19: 0 | DW19: 0 | DX19: 0 | ED19: 0 | EE19: 0 | EK19: 0 | EL19: 0 | ER19: 0 | ES19: 0
B20: LEGISLAÇÃO ESPECIAL | D20: 0 | E20: 0 | F20: 0 | G20: 0 | H20: 0 | I20: 0 | O20: 0 | P20: 0 | V20: 0 | W20: 0 | AC20: 0 | AD20: 0 | AJ20: 0 | AK20: 0 | AQ20: 0 | AR20: 0 | AX20: 0 | AY20: 0 | BE20: 0 | BF20: 0 | BL20: 0 | BM20: 0 | BS20: 0 | BT20: 0 | BZ20: 0 | CA20: 0 | CG20: 0 | CH20: 0 | CN20: 0 | CO20: 0 | CU20: 0 | CV20: 0 | DB20: 0 | DC20: 0 | DI20: 0 | DJ20: 0 | DP20: 0 | DQ20: 0 | DW20: 0 | DX20: 0 | ED20: 0 | EE20: 0 | EK20: 0 | EL20: 0 | ER20: 0 | ES20: 0
B21: CRIMINOLOGIA | D21: 0 | E21: 0 | F21: 0 | G21: 0 | H21: 0 | I21: 0 | O21: 0 | P21: 0 | V21: 0 | W21: 0 | AC21: 0 | AD21: 0 | AJ21: 0 | AK21: 0 | AQ21: 0 | AR21: 0 | AX21: 0 | AY21: 0 | BE21: 0 | BF21: 0 | BL21: 0 | BM21: 0 | BS21: 0 | BT21: 0 | BZ21: 0 | CA21: 0 | CG21: 0 | CH21: 0 | CN21: 0 | CO21: 0 | CU21: 0 | CV21: 0 | DB21: 0 | DC21: 0 | DI21: 0 | DJ21: 0 | DP21: 0 | DQ21: 0 | DW21: 0 | DX21: 0 | ED21: 0 | EE21: 0 | EK21: 0 | EL21: 0 | ER21: 0 | ES21: 0
B22: PORTUGUÊS | D22: 0 | E22: 0 | F22: 0 | G22: 0 | H22: 0 | I22: 0 | O22: 0 | P22: 0 | V22: 0 | W22: 0 | AC22: 0 | AD22: 0 | AJ22: 0 | AK22: 0 | AQ22: 0 | AR22: 0 | AX22: 0 | AY22: 0 | BE22: 0 | BF22: 0 | BL22: 0 | BM22: 0 | BS22: 0 | BT22: 0 | BZ22: 0 | CA22: 0 | CG22: 0 | CH22: 0 | CN22: 0 | CO22: 0 | CU22: 0 | CV22: 0 | DB22: 0 | DC22: 0 | DI22: 0 | DJ22: 0 | DP22: 0 | DQ22: 0 | DW22: 0 | DX22: 0 | ED22: 0 | EE22: 0 | EK22: 0 | EL22: 0 | ER22: 0 | ES22: 0
D23: 0 | E23: 0 | F23: 0 | G23: 0 | H23: 0 | I23: 0 | O23: 0 | P23: 0 | V23: 0 | W23: 0 | AC23: 0 | AD23: 0 | AJ23: 0 | AK23: 0 | AQ23: 0 | AR23: 0 | AX23: 0 | AY23: 0 | BE23: 0 | BF23: 0 | BL23: 0 | BM23: 0 | BS23: 0 | BT23: 0 | BZ23: 0 | CA23: 0 | CG23: 0 | CH23: 0 | CN23: 0 | CO23: 0 | CU23: 0 | CV23: 0 | DB23: 0 | DC23: 0 | DI23: 0 | DJ23: 0 | DP23: 0 | DQ23: 0 | DW23: 0 | DX23: 0 | ED23: 0 | EE23: 0 | EK23: 0 | EL23: 0 | ER23: 0 | ES23: 0
B24: TOTAL | D24: =SUM(D13:D23) -> 0 | E24: =SUM(E13:E23) -> 0 | F24: =SUM(F13:F23) -> 0 | G24: =SUM(G13:G23) -> 0 | H24: =SUM(H13:H23) -> 0 | K24: =SUM(K13:K23) -> 0 | L24: =SUM(L13:L23) -> 0 | M24: =SUM(M13:M23) -> 0 | N24: =SUM(N13:N23) -> 0 | O24: =SUM(O13:O23) -> 0 | R24: =SUM(R13:R23) -> 0 | S24: =SUM(S13:S23) -> 0 | T24: =SUM(T13:T23) -> 0 | U24: =SUM(U13:U23) -> 0 | V24: =SUM(V13:V23) -> 0 | Y24: =SUM(Y13:Y23) -> 0 | Z24: =SUM(Z13:Z23) -> 0 | AA24: =SUM(AA13:AA23) -> 0 | AB24: =SUM(AB13:AB23) -> 0 | AC24: =SUM(AC13:AC23) -> 0 | AF24: =SUM(AF13:AF23) -> 0 | AG24: =SUM(AG13:AG23) -> 0 | AH24: =SUM(AH13:AH23) -> 0 | AI24: =SUM(AI13:AI23) -> 0 | AJ24: =SUM(AJ13:AJ23) -> 0 | AM24: =SUM(AM13:AM23) -> 0 | AN24: =SUM(AN13:AN23) -> 0 | AO24: =SUM(AO13:AO23) -> 0 | AP24: =SUM(AP13:AP23) -> 0 | AQ24: =SUM(AQ13:AQ23) -> 0 | AT24: =SUM(AT13:AT23) -> 0 | AU24: =SUM(AU13:AU23) -> 0 | AV24: =SUM(AV13:AV23) -> 0 | AW24: =SUM(AW13:AW23) -> 0 | AX24: =SUM(AX13:AX23) -> 0 | BA24: =SUM(BA13:BA23) -> 0 | BB24: =SUM(BB13:BB23) -> 0 | BC24: =SUM(BC13:BC23) -> 0 | BD24: =SUM(BD13:BD23) -> 0 | BE24: =SUM(BE13:BE23) -> 0 | BH24: =SUM(BH13:BH23) -> 0 | BI24: =SUM(BI13:BI23) -> 0 | BJ24: =SUM(BJ13:BJ23) -> 0 | BK24: =SUM(BK13:BK23) -> 0 | BL24: =SUM(BL13:BL23) -> 0 | BO24: =SUM(BO13:BO23) -> 0 | BP24: =SUM(BP13:BP23) -> 0 | BQ24: =SUM(BQ13:BQ23) -> 0 | BR24: =SUM(BR13:BR23) -> 0 | BS24: =SUM(BS13:BS23) -> 0 | BV24: =SUM(BV13:BV23) -> 0 | BW24: =SUM(BW13:BW23) -> 0 | BX24: =SUM(BX13:BX23) -> 0 | BY24: =SUM(BY13:BY23) -> 0 | BZ24: =SUM(BZ13:BZ23) -> 0 | CC24: =SUM(CC13:CC23) -> 0 | CD24: =SUM(CD13:CD23) -> 0 | CE24: =SUM(CE13:CE23) -> 0 | CF24: =SUM(CF13:CF23) -> 0 | CG24: =SUM(CG13:CG23) -> 0 | CJ24: =SUM(CJ13:CJ23) -> 0 | CK24: =SUM(CK13:CK23) -> 0 | CL24: =SUM(CL13:CL23) -> 0 | CM24: =SUM(CM13:CM23) -> 0 | CN24: =SUM(CN13:CN23) -> 0 | CQ24: =SUM(CQ13:CQ23) -> 0 | CR24: =SUM(CR13:CR23) -> 0 | CS24: =SUM(CS13:CS23) -> 0 | CT24: =SUM(CT13:CT23) -> 0 | CU24: =SUM(CU13:CU23) -> 0 | CX24: =SUM(CX13:CX23) -> 0 | CY24: =SUM(CY13:CY23) -> 0 | CZ24: =SUM(CZ13:CZ23) -> 0 | DA24: =SUM(DA13:DA23) -> 0 | DB24: =SUM(DB13:DB23) -> 0 | DE24: =SUM(DE13:DE23) -> 0 | DF24: =SUM(DF13:DF23) -> 0 | DG24: =SUM(DG13:DG23) -> 0 | DH24: =SUM(DH13:DH23) -> 0 | DI24: =SUM(DI13:DI23) -> 0 | DL24: =SUM(DL13:DL23) -> 0 | DM24: =SUM(DM13:DM23) -> 0 | DN24: =SUM(DN13:DN23) -> 0 | DO24: =SUM(DO13:DO23) -> 0 | DP24: =SUM(DP13:DP23) -> 0 | DS24: =SUM(DS13:DS23) -> 0 | DT24: =SUM(DT13:DT23) -> 0 | DU24: =SUM(DU13:DU23) -> 0 | DV24: =SUM(DV13:DV23) -> 0 | DW24: =SUM(DW13:DW23) -> 0 | DZ24: =SUM(DZ13:DZ23) -> 0 | EA24: =SUM(EA13:EA23) -> 0 | EB24: =SUM(EB13:EB23) -> 0 | EC24: =SUM(EC13:EC23) -> 0 | ED24: =SUM(ED13:ED23) -> 0 | EG24: =SUM(EG13:EG23) -> 0 | EH24: =SUM(EH13:EH23) -> 0 | EI24: =SUM(EI13:EI23) -> 0 | EJ24: =SUM(EJ13:EJ23) -> 0 | EK24: =SUM(EK13:EK23) -> 0 | EL24: 0 | EN24: =SUM(EN13:EN23) -> 0 | EO24: =SUM(EO13:EO23) -> 0 | EP24: =SUM(EP13:EP23) -> 0 | EQ24: =SUM(EQ13:EQ23) -> 0 | ER24: =SUM(ER13:ER23) -> 0

Sheet ANÁLISE DE CONC
B3: QUADRO COMPARATIVO DE DISCIPLINAS ENTRE CONCURSOS DE INTERESSE
B4: PRF | C4: PF | D4: DEPEN | E4: PC- | F4: CONCURSO 5
B5: PORTUGUES | C5: PORTUGUES | D5: PORTUGUES | E5: PORTUGUES
B6: DIR CONST | C6: DIR CONST | D6: DIR CONST | E6: DIR CONST
B7: DIR ADMIN | C7: DIR ADMIN | D7: DIR ADMIN | E7: DIR ADMIN
B8: DP | C8: DP | D8: DP | E8: DP
B9: DPP | C9: DPP | D9: DPP | E9: DPP
B10: RAC LOG | C10: RAC LOG | D10: RAC LOG | E10: RAC LOG
B11: INFORM | C11: INFORM | D11: INFORM | E11: INFORM
B12: FISICA | C12: CONTABILID | D12: DIR HUMANOS | E12: LEGISL EXTRAVAGANTES
B13: LEGISL PRF | C13: ESTATISTICA | D13: LEGISL EXTRAVAGANTES
B14: LEIS DE TRANSITO | C14: LEGISL EXTRAVAGANTES
B15: LEGISL EXTRAVAGANTES

Sheet INÍCIO
F4: MENTORIA PARA CARREIRAS POLICIAIS (Clique nos links abaixo)
F5: MENTORIA: www.fococaveira.com.br
F6: TELEGRAM DE DICAS
F7: FACEBOOK
F8: INSTAGRAM: @fococaveira_
F9: YOUTUBE: Foco Caveira
F10: Contato Whatsapp: 67.99287-6697
D11: Informações de uso da planilha:
D12: 1) ATENÇÃO: NÃO USE ESSA PLANILHA no Google Chrome e nem no Celular.... Faça o download para seu computador e use-a no EXCEL! (ou ela ficará desconfigurada). | F12: ACESSE A TODAS AS PLANILHAS ATUALIZADAS EM NOSSO TELEGRAM. ACESSO PELO SITE WWW.FOCOCAVEIRA.COM.BR
D13: 2) A planinha é totalmente automatizada. Preencher somente nas partes não bloqueadas. | F13: Na mentoria trabalhamos o plano de estudo direcionado para o seu CONCURSO ESPECÍFICO. Além das mentorias, temos o CURSO ESTRATÉGIA POLICIAL - vídeos de como estudar para cada concurso na área policial. Acesse nosso site acima.
